Cogmind - Beta 14 @@@ ROGUE MODE // 2024.12.04 @ 20:38:48 Player: Darsidian Result: Destroyed by H-66 Slayer via exploding Nuclear Reactor Performance ------------- Evolutions (5) 2500 Regions Visited (14) 2800 Robots Destroyed (231) 1155 Value Destroyed (9834) 9834 Prototype IDs (37) 740 Alien Tech Used (0) 0 Bonus (5434) 5434 TOTAL SCORE: 22463 Bonus ------- High Alert Combat Kills 1499 Follower Combat Kills 1145 Entered Garrisons 600 Used RIF Installer 2000 Aligned with FarCom 300 Friendly Fire -110 Cogmind --------- Core Integrity 0/1000 Matter 243/300 Energy 76/100 System Corruption 17% Temperature Cool (0) Movement Core (50) Location -5/Factory Parts ------- > --- POWER (1) -------- (None) > --- PROPULSION (4) --- (None) > --- UTILITY (10) ----- Improved Signal Interpreter Improved Terrain Scan Processor Advanced Salvage Targeting Computer Targeting Computer Improved Targeting Computer Improved Target Analyzer Relay Coupler [Swarmer] (9) > --- WEAPON (2) ------- (None) > --- INVENTORY (5) ---- Improved Actuator Array Advanced Hacking Suite Drone Bay (2/2) Improved Datajack Remote Datajack Peak State ------------ > --- POWER ------------ Light Antimatter Reactor > --- PROPULSION ------- Armored Wheel Armored Huge Wheel > --- UTILITY ---------- Huge Storage Unit Superbattery Advanced Terrain Scan Processor Advanced Targeting Computer Improved Transmission Jammer Advanced Shield Generator System Shield > --- WEAPON ----------- Smartbomb Launcher > --- INVENTORY -------- Micro Fission Core Armored Wheel Armored Wheel Armored Wheel High-capacity Matter Pod Improved Signal Interpreter Improved Terrain Scanner Improved Kinecellerator ECM Suite Improved Medium Armor Plating Hardlight Generator Point Defense System Hacking Suite Relay Coupler [Swarmer] Relay Coupler [Grunt] System Restoration Module Gauss Rifle Gauss Rifle Gauss Rifle Mini Grenade Launcher Improved Datajack Remote Datajack Plasma Cutter Great Maul [Rating: 69] Favorites ----------- Power Light Nuclear Core Engine Improved Ion Engine Power Core Light Nuclear Core Reactor Light Antimatter Reactor Propulsion Armored Wheel Treads Light Treads Wheel Armored Wheel Hover Unit Gravmag System Flight Unit Flight Unit Utility Huge Storage Unit Device Improved Transmission Jammer Storage Huge Storage Unit Processor Improved Targeting Computer Hackware System Shield Protection Improved Light Armor Plating Weapon Gauss Rifle Energy Gun Spread Laser Energy Cannon Heavy Particle Cannon Ballistic Gun Gauss Rifle Ballistic Cannon Hypervelocity Gauss Cannon Launcher Mini Grenade Launcher Special Weapon Remote Datajack Impact Weapon Great Maul Slashing Weapon Carbide Saw Special Melee Weapon Improved Datajack Build | -11 -10 -10 -9 -9 -9 -8 -8 -8 -7 -7 -7 -7 -6 -5 ------- Run | Yrd Mat Min Mat Min Exi Min Mat Gar Fac Gar Fac Gar Fac Fac Slots Evolved 10 | . . . 2 . . . 2 . 2 . . . 2 2 Power . | . . . . . . . . . . . . . . . Propulsion 2 | . . . 1 . . . . . . . . . . 1 Utility 8 | . . . 1 . . . 2 . 2 . . . 2 1 Weapon . | . . . . . . . . . . . . . . . Parts Attached 494 | 7 24 5 24 22 1 6 69 42 54 59 23 45 73 40 Power 46 | 1 1 2 6 2 . . 5 1 6 4 1 4 9 4 Engine 25 | 1 1 2 5 . . . 4 . 1 1 1 3 6 . Core 18 | . . . 1 2 . . 1 1 5 1 . 1 2 4 Reactor 3 | . . . . . . . . . . 2 . . 1 . Propulsion 74 | 2 12 . 3 4 . . 9 3 4 9 . 3 13 12 Treads 4 | . 2 . . . . . . . . . . . . 2 Leg . | . . . . . . . . . . . . . . . Wheel 62 | 2 8 . 3 4 . . 9 3 4 9 . 3 11 6 Hover 6 | . . . . . . . . . . . . . 2 4 Flight 2 | . 2 . . . . . . . . . . . . . Utility 128 | 2 2 1 4 8 1 . 18 14 16 12 7 6 25 12 Device 59 | 1 1 1 2 4 . . 10 6 7 5 3 1 15 3 Storage 11 | 1 1 . . . 1 . 1 . 2 1 . . 3 1 Processor 18 | . . . 2 2 . . . 1 2 . . 2 2 7 Hackware 24 | . . . . . . . 2 4 3 3 4 2 5 1 Protection 16 | . . . . 2 . . 5 3 2 3 . 1 . . Artifact . | . . . . . . . . . . . . . . . Weapon 246 | 2 9 2 11 8 . 6 37 24 28 34 15 32 26 12 Energy Gun 28 | . 5 . 3 2 . 1 2 . 1 3 1 5 3 2 Energy Cannon 8 | . . . 2 1 . 1 3 . . . . . 1 . Ballistic Gun 105 | 2 4 1 5 3 . 2 17 12 15 13 3 14 12 2 Ballistic Cannon 2 | . . . . . . . . . . . . . . 2 Launcher 24 | . . 1 1 . . 1 7 . 3 4 2 4 . 1 Special Weapon 29 | . . . . . . . . 3 6 6 4 5 5 . Impact Weapon 39 | . . . . 2 . 1 7 6 3 6 5 4 5 . Slashing Weapon 4 | . . . . . . . . . . . . . . 4 Piercing Weapon . | . . . . . . . . . . . . . . . Special Melee Weapon 7 | . . . . . . . 1 3 . 2 . . . 1 Unidentified Prototypes 5 | . . . 4 . . . . . . . . . 1 . Corrupted Parts 1 | . . . . . . . . . . . . . . 1 System Corruption 5 | . . . . . . . . . . . . . . 5 Parts Lost 92 | . 1 . 5 4 . . 9 1 4 3 2 5 33 25 Power 13 | . . . 2 1 . . 1 . 2 . . 1 2 4 Propulsion 30 | . 1 . 1 1 . . 4 . . 1 1 2 10 9 Utility 29 | . . . 1 2 . . 1 1 . 2 1 1 16 4 Weapon 20 | . . . 1 . . . 3 . 2 . . 1 5 8 Highest Loss Streak 15 | . 1 . 2 2 . . 4 1 3 2 2 1 15 7 To Critical Strikes 3 | . . . 1 . . . . . . . . . 1 1 Average Slot Usage (%) 93 | . 98 98 99 98 95 88 91 99 92 94 97 98 85 61 Engine 4 | . 14 12 10 1 . . 7 2 2 . 3 6 5 . Core 3 | . . . . 9 11 11 1 6 4 . 3 . . 1 Wheel 23 | . 23 28 32 32 33 33 26 27 16 18 23 22 14 5 Device 10 | . 14 14 10 5 6 . 14 4 12 11 15 13 11 2 Storage 9 | . 14 14 11 11 10 11 9 9 7 14 8 7 6 3 Processor 9 | . . . 10 9 11 11 9 9 15 10 7 6 3 30 Hackware 10 | . . . . . . . 3 18 15 12 19 20 28 5 Protection 1 | . . . . 6 . . 3 2 . 1 . 3 1 . Energy Gun 3 | . 11 . 4 8 11 9 1 . . 1 2 2 . . Ballistic Gun 10 | . 16 27 15 11 11 10 10 11 11 4 4 10 7 . Special Weapon 1 | . . . . . . . . 2 1 4 2 . 1 . Impact Weapon 1 | . . . . 1 . . 2 3 1 2 1 . 1 1 Peak Build Rating 69 | 7 17 17 24 25 22 23 33 48 60 69 57 55 69 69 Average Rating 37 | 5 12 14 20 21 21 22 28 40 53 59 47 50 51 40 On Entrance 27 | . 7 17 16 24 21 21 23 32 42 51 57 38 45 22 Naked Turns . | . . . . . . . . . . . . . . . Heaviest Build 226 | 11 94 94 98 96 211 214 226 108 102 118 104 109 115 88 Greatest Support 42 | 20 40 24 36 36 32 32 42 40 40 40 36 36 38 42 Greatest Overweight (x) 10 | . 7 3 3 4 6 6 10 2 8 3 3 4 4 8 Average Overweight (x) 2 | . 2 3 2 2 3 6 4 2 2 2 2 2 1 1 Largest Inventory Capacity 35 | 8 25 25 25 25 35 35 35 25 25 25 25 25 25 25 Average Capacity 25 | 7 24 25 25 25 28 35 31 25 25 25 25 25 22 12 Most Carried 28 | 6 24 25 25 25 24 24 28 25 25 25 24 24 24 12 Average Carried 21 | 1 16 23 23 24 22 23 23 24 24 22 20 19 18 7 Final Capacity 35 | 8 25 25 25 25 35 35 25 25 25 25 25 25 25 5 Final Carried 25 | 6 24 25 25 24 21 24 22 25 24 24 19 24 12 5 Class Distribution -------------------- 28% | Mutant 20% | Bothacker-Mutant 7% | Hauler-Mutant 7% | Hacker-Mutant 6% | Scavenger-Mutant 4% | Hauler-Skirmisher 4% | Commander-Mutant 4% | Skirmisher 3% | Assassin 3% | Hacker-Skirmisher Dominant Class ---------------- Mutant | -10/Materials Mutant | -10/Mines Mutant | -9/Materials Mutant | -9/Mines Mutant | -9/Exiles Hauler-Mutant | -8/Mines Hauler-Skirmisher | -8/Materials Hacker-Mutant | -8/Garrison Skirmisher | -7/Factory Bothacker-Mutant | -7/Garrison Hacker-Skirmisher | -7/Factory Bothacker-Mutant | -7/Garrison Bothacker-Mutant | -6/Factory Scavenger-Mutant | -5/Factory Resources | -11 -10 -10 -9 -9 -9 -8 -8 -8 -7 -7 -7 -7 -6 -5 ----------- Run | Yrd Mat Min Mat Min Exi Min Mat Gar Fac Gar Fac Gar Fac Fac Matter Collected 10201 | 276 529 286 689 444 28 124 1015 1189 1027 1189 198 1132 1532 543 Remotely 291 | . . . . . . . 291 . . . . . . . Salvage Created 10159 | 103 449 369 1229 530 . 87 1213 759 1088 1244 202 820 1481 585 Parts 507 | 6 43 29 79 31 . 8 77 38 61 20 3 38 41 33 Haulers Intercepted 8 | . . . 3 . . . 1 . 2 . 1 . 1 . Recyclers Shooed 11 | . 1 . . 2 . . 1 . 3 . . . 1 3 Parts Field Recycled . | . . . . . . . . . . . . . . . Retrieved Matter . | . . . . . . . . . . . . . . . Parts Self-Destructed . | . . . . . . . . . . . . . . . Prevented . | . . . . . . . . . . . . . . . Kills | -11 -10 -10 -9 -9 -9 -8 -8 -8 -7 -7 -7 -7 -6 -5 ------- Run | Yrd Mat Min Mat Min Exi Min Mat Gar Fac Gar Fac Gar Fac Fac Combat Hostiles Destroyed 188 | . 15 13 24 11 . 5 16 11 15 34 3 20 14 7 Melee 9 | . . . . 2 . . . . . 7 . . . . Guns 132 | . 14 10 17 8 . 2 15 11 11 12 . 17 13 2 Cannons 9 | . . . 4 1 . . 1 . . . . . . 3 AOE 37 | . 1 3 3 . . 3 . . 4 15 3 3 . 2 Classes Destroyed 16 | 2 5 . 5 1 . . 1 1 . . . . 1 . Worker 17 | . 1 . 1 1 . . 5 . 2 . 2 . 2 3 Builder 10 | . . . 2 1 . . 4 . 1 . . . 2 . Tunneler 4 | 1 . 1 . 1 . . . . . . . . 1 . Hauler 8 | . . . 3 . . . 1 . 2 . 1 . 1 . Recycler 18 | 1 . 1 1 2 . . 3 . 3 . 1 . 4 2 Mechanic 1 | . . . . . . . . . . . . . 1 . Operator 3 | . 1 . 1 . . . . . 1 . . . . . Watcher 12 | . 2 . 4 . . . 3 1 1 . 1 . . . Swarmer 37 | . 9 7 6 2 . 3 . . 4 3 3 . . . Grunt 77 | . 6 6 13 7 . 2 11 4 7 . . 13 6 2 Brawler 7 | . . . 1 1 . . 1 . . . . 1 3 . Duelist 5 | . . . 1 . . . . 1 1 . . . 2 . Sentry 17 | . . . 3 . . . 2 4 . 2 . 5 . 1 Hunter 5 | . . . . . . . 2 . 1 . . 1 . 1 Programmer 10 | . . . . . . . . 2 2 . . . 3 3 Assembled 30 | . . . . 1 . . . . . 29 . . . . Best Kill Streak 10 | 1 4 6 5 7 . 3 6 2 5 10 4 3 3 3 Combat Bots Only 10 | . 3 5 5 6 . 3 4 2 4 10 3 3 3 2 Max Kills in Single Turn 3 | 1 2 2 2 2 . 2 3 1 2 3 3 1 2 2 Gunslinging 1 | . 1 1 . 1 . . . . . . . . . . Exploded 3 | . 1 1 1 . . 2 . . 2 3 3 1 . 2 Melee 1 | . . . . 1 . . . . . 1 . . . . Uniques/NPCs Destroyed . | . . . . . . . . . . . . . . . Combat | -11 -10 -10 -9 -9 -9 -8 -8 -8 -7 -7 -7 -7 -6 -5 -------- Run | Yrd Mat Min Mat Min Exi Min Mat Gar Fac Gar Fac Gar Fac Fac Hostile Shots Fired 1350 | . 51 42 123 82 . 19 98 30 65 140 29 133 323 215 Missed 434 | . 13 13 35 23 . 3 21 11 19 41 12 58 120 65 Damage Taken 14111 | . 424 317 963 708 . 206 1254 592 708 986 404 936 3532 3081 Core 2858 | . 113 41 134 148 . 31 140 137 80 104 92 141 659 1038 Absorbed by Shields 600 | . . . . . . . 140 8 . 352 . . 100 . Redirected to Shielding 33 | . . . . . . . 33 . . . . . . . Ignored by Resistances 4 | . . . . . . . . 4 . . . . . . Regen/Repaired (Parts) 199 | . . . . . . . 177 . . . 22 . . . Core Remaining (%) 45 | 100 . 38 . . . 21 . 49 . . . 40 22 . Volleys Fired 941 | 8 47 25 81 40 . 11 71 100 74 234 17 91 96 46 Largest 2 | 2 2 2 2 2 . 2 2 2 2 2 2 2 2 2 Hottest 121 | 40 105 53 98 100 . 100 103 66 66 110 110 110 108 121 Shots Fired 1441 | 16 91 44 158 74 . 19 132 138 127 267 18 137 169 51 Gun 1041 | 16 91 39 138 68 . 11 108 77 108 80 1 120 154 30 Cannon 60 | . . . 17 6 . 4 15 . . . . . . 18 Launcher 56 | . . 5 3 . . 4 9 . 6 14 3 9 . 3 Special 284 | . . . . . . . . 61 13 173 14 8 15 . Kinetic 896 | 16 62 39 105 56 . 7 90 77 108 54 . 100 138 44 Thermal 373 | . 17 . 25 18 . 8 33 52 . 183 1 20 16 . Explosive 54 | . . 5 3 . . 4 7 . 6 14 3 9 . 3 Electromagnetic 43 | . 12 . 25 . . . 2 . . . . . . 4 Robot Hit Streak 32 | 3 7 5 12 9 . 4 17 32 8 31 9 18 15 13 Robot Miss Streak 6 | 2 4 4 6 5 . 6 5 3 5 5 1 5 3 2 Penetration Max 1 | . . . . . . . 1 . 1 1 . . 1 . Secondary Targets 14 | . 1 2 1 1 . . 1 2 2 2 . 1 1 . Max Gunslinging Chain 1 | . 1 1 1 1 . . 1 1 1 1 . 1 1 . Shots Hit Robots 1047 | 7 54 19 98 52 . 10 98 121 73 223 19 90 135 48 Core Hits 523 | 3 29 22 48 33 . 11 71 35 35 108 6 44 54 24 Critical Kills 13 | . . . . . . . . 1 1 2 . 2 1 6 Critical Parts Destroyed 20 | . . . 1 1 . . . 2 2 1 2 1 5 5 Critical Strikes 49 | . 1 . 1 1 . . . 4 3 14 2 3 6 14 Burn 1 | . 1 . . . . . . . . . . . . . Destroy 24 | . . . 1 . . . . 3 3 1 . 3 2 11 Corrupt 1 | . . . . . . . . . . . . . . 1 Smash 9 | . . . . 1 . . . . . 2 2 . 4 . Sever 14 | . . . . . . . . 1 . 11 . . . 2 Melee Attacks 171 | . . . . 15 . 2 15 40 6 48 11 6 18 10 Impact 136 | . . . . 15 . 2 14 18 6 44 11 6 18 2 Slashing 8 | . . . . . . . . . . . . . . 8 Piercing . | . . . . . . . . . . . . . . . Sneak Attacks 38 | . . . . . . . 2 19 1 4 4 . 8 . Combat Hostiles 3 | . . . . . . . . 2 . . . . 1 . Follow-up Attacks 1 | . . . . 1 . . . . . . . . . . Damage Inflicted 24089 | 58 685 675 1957 926 . 530 2200 1474 2070 4550 1022 2787 3747 1408 Guns 13917 | 58 627 301 1398 744 . 134 1437 950 1735 1307 11 2000 2806 409 Cannons 931 | . . . 225 75 . 50 275 . . . . . . 306 Explosions 4884 | . 58 374 334 . . 346 366 . 278 1246 574 787 . 521 Melee 2251 | . . . . 107 . . 122 . 57 415 437 . 941 172 Ramming . | . . . . . . . . . . . . . . . Kinetic 11968 | 58 465 301 940 583 . 87 1206 950 1735 689 . 1683 2560 711 Thermal 4686 | . 172 . 377 236 . 97 506 524 . 2200 11 317 246 . Explosive 4766 | . . 374 302 . . 346 338 . 278 1246 574 787 . 521 Electromagnetic 418 | . 48 . 338 . . . 28 . . . . . . 4 Impact 2079 | . . . . 107 . . 122 . 57 415 437 . 941 . Slashing 172 | . . . . . . . . . . . . . . 172 Piercing . | . . . . . . . . . . . . . . . Highest Corruption 33 | . 2 2 1 2 2 2 2 7 . 6 7 3 33 17 Average Corruption 3 | . 1 2 1 1 2 2 2 2 . 5 4 3 10 12 Corruption Purged 14 | . . . . . . . . . . . 4 . 10 . Corruption Blocked . | . . . . . . . . . . . . . . . Effects 310 | . 1 13 10 17 11 18 35 37 . 31 14 34 67 22 Message Errors 70 | . . 6 2 3 6 3 6 9 . 6 6 10 10 3 Matter Fused 64 | . . 1 4 4 3 4 7 3 . 9 2 12 10 5 Heat Flow Errors 39 | . 1 2 1 . . 1 8 6 . 3 3 6 5 3 Energy Discharges 35 | . . . 1 2 . 5 4 6 . 4 1 . 9 3 Parts Rejected 4 | . . 1 . . . . . . . . . . 2 1 Parts Fused 5 | . . . . . . . . . . 2 1 . 1 1 Data Loss (minor) 39 | . . 1 1 2 . 2 3 9 . 5 1 4 9 2 Data Loss (major) 15 | . . 1 . 1 2 2 2 3 . . . . 4 . Misfires 14 | . . . 1 2 . 1 5 . . . . 2 3 . Alerts 7 | . . . . 2 . . . . . 2 . . 3 . Misdirections 3 | . . . . . . . . . . . . . 2 1 Weapon Failures 15 | . . 1 . 1 . . . 1 . . . . 9 3 Overload Shots . | . . . . . . . . . . . . . . . Overflow Damage 1181 | . . . 30 42 . 7 102 . 35 126 367 14 458 . Projectiles 19 | . . . 12 . . . . . . 7 . . . . Explosions 219 | . . . 18 . . 7 . . . 84 96 14 . . Melee 943 | . . . . 42 . . 102 . 35 35 271 . 458 . Knockbacks 6 | . . . . . . . . . . . 3 . 2 1 Impact 5 | . . . . . . . . . . . 3 . 2 . Kinetic 1 | . . . . . . . . . . . . . . 1 Secondary . | . . . . . . . . . . . . . . . Self-Inflicted Damage 311 | . . 1 32 . . 28 38 . . 91 121 . . . Shots 10 | . . 1 1 . . 1 2 . . 3 2 . . . Rammed . | . . . . . . . . . . . . . . . Targets Rammed . | . . . . . . . . . . . . . . . Kicked . | . . . . . . . . . . . . . . . Crushed . | . . . . . . . . . . . . . . . Highest Temperature 354 | . 269 255 259 354 . 247 266 235 14 320 171 254 238 227 Average Temperature 65 | . 71 46 38 71 . 102 84 48 5 104 69 50 66 52 Received Heat Transfer 3537 | . 72 117 282 382 . 63 508 157 216 169 18 489 694 370 Effects 7 | . 2 . . 3 . 1 . . . . . . 1 . Energy Bleed 2 | . . . . . . 1 . . . . . . 1 . Interference 5 | . 2 . . 3 . . . . . . . . . . Siege Activations . | . . . . . . . . . . . . . . . Robots Corrupted 7 | . . . . . . . 1 . . . 3 . 3 . Combat Hostiles 1 | . . . . . . . . . . . . . 1 . Parts Fried 15 | . . . 2 1 . . . . . . 5 . 7 . Impact Corruptions 25 | . . . . 1 . . 2 . 1 1 9 . 11 . Robots Melted . | . . . . . . . . . . . . . . . Combat Hostiles . | . . . . . . . . . . . . . . . Parts Melted 2 | . 1 . . . . . . . . 1 . . . . Heat Transferred 11835 | . 359 . 592 311 . 134 722 1739 . 6728 25 700 525 . Parts Sabotaged . | . . . . . . . . . . . . . . . Parts Stolen . | . . . . . . . . . . . . . . . Parts Stripped . | . . . . . . . . . . . . . . . Power Chain Reactions 2 | . 1 . 1 . . . . . . . . . . . Alert | -11 -10 -10 -9 -9 -9 -8 -8 -8 -7 -7 -7 -7 -6 -5 ------- Run | Yrd Mat Min Mat Min Exi Min Mat Gar Fac Gar Fac Gar Fac Fac Peak Influence 2475 | 10 325 408 412 289 . 117 148 1267 885 2475 1360 1787 938 282 Initial 1280 | . 6 95 112 106 . . 45 87 665 569 1280 772 938 256 Average 600 | 3 177 266 244 145 . 18 56 572 762 1514 1234 1202 729 147 Maximum Alert Level 5 | . 1 2 2 1 . . . 4 3 5 4 5 3 1 Low Security (%) 34 | 100 77 26 25 69 . 100 100 31 . . . . . 59 Level 1 14 | . 22 62 71 30 . . . 18 . . . . . 40 Level 2 10 | . . 11 2 . . . . 7 23 5 . . 54 . Level 3 22 | . . . . . . . . 28 76 21 5 39 45 . Level 4 13 | . . . . . . . . 14 . 30 94 56 . . Level 5 5 | . . . . . . . . . . 42 . 4 . . High Security . | . . . . . . . . . . . . . . . Max Security . | . . . . . . . . . . . . . . . Squads Dispatched 34 | . 3 . 4 . . . 3 . 4 . 3 . 13 4 Investigation 7 | . 1 . 3 . . . 1 . . . . . 1 1 Extermination 9 | . . . . . . . . . 3 . . . 4 2 Reinforcement 11 | . 2 . 1 . . . 2 . 1 . . . 4 1 Assault 5 | . . . . . . . . . . . 1 . 4 . Garrison 2 | . . . . . . . . . . . 2 . . . Intercept . | . . . . . . . . . . . . . . . Searches Triggered . | . . . . . . . . . . . . . . . Construction Impeded 2 | . . . . . . . 1 . . . . . . 1 Haulers Reinforced 3 | . . . . . . . . . . . . . 3 . Active Scanning Responses . | . . . . . . . . . . . . . . . Cargo Convoy Interrupts 2 | . . . . . . . . . . . 1 . 1 . Stealth | -11 -10 -10 -9 -9 -9 -8 -8 -8 -7 -7 -7 -7 -6 -5 --------- Run | Yrd Mat Min Mat Min Exi Min Mat Gar Fac Gar Fac Gar Fac Fac Distress Signals 18 | . 2 . 7 1 . . 1 . 3 . . . 2 2 Communications Jammed 22 | . . . . . . . . . 8 . . . 14 . Distress Signals 22 | . . . . . . . . . 8 . . . 14 . Times Spotted 358 | . 25 15 47 17 . 6 24 23 35 53 7 28 58 20 Peak Tracking Total 13 | . 4 5 6 5 . 4 4 7 5 7 4 3 13 7 Tactical Retreats 41 | . 4 . 8 2 . 1 1 1 1 5 . 3 12 3 Traps | -11 -10 -10 -9 -9 -9 -8 -8 -8 -7 -7 -7 -7 -6 -5 ------- Run | Yrd Mat Min Mat Min Exi Min Mat Gar Fac Gar Fac Gar Fac Fac Traps Triggered 21 | . 4 . . . . . 1 . 3 4 2 1 4 2 Indirectly 1 | . . . . . . . 1 . . . . . . . Trap Hack Attempts 7 | . . . . . . . . 7 . . . . . . Triggered . | . . . . . . . . . . . . . . . Disarmed . | . . . . . . . . . . . . . . . Reprogrammed 1 | . . . . . . . . 1 . . . . . . Reused 1 | . . . 1 . . . . . . . . . . . Traps Extracted . | . . . . . . . . . . . . . . . Installed 1 | . . . 1 . . . . . . . . . . . Triggered 3 | . . . 1 . . . . . . . . . 2 . Most Traps Carried 2 | . . 2 2 1 1 1 1 1 . . . . . . Machines | -11 -10 -10 -9 -9 -9 -8 -8 -8 -7 -7 -7 -7 -6 -5 ---------- Run | Yrd Mat Min Mat Min Exi Min Mat Gar Fac Gar Fac Gar Fac Fac Machines Disabled 38 | . 1 . 1 . . . 2 12 3 8 1 8 1 1 Max in Single Turn 1 | . 1 . 1 . . . 1 1 1 1 1 1 1 1 Garrison Relay 14 | . . . . . . . . 7 . 4 . 3 . . Machines Repaired . | . . . . . . . . . . . . . . . Machines Dismantled 3 | . . . . . . . . 1 . 2 . . . . Machines Sabotaged 1 | . 1 . . . . . . . . . . . . . Overloaded Fab Kills . | . . . . . . . . . . . . . . . Hacking | -11 -10 -10 -9 -9 -9 -8 -8 -8 -7 -7 -7 -7 -6 -5 --------- Run | Yrd Mat Min Mat Min Exi Min Mat Gar Fac Gar Fac Gar Fac Fac Machines Accessed 59 | . 1 . 9 1 1 . 12 2 11 1 7 3 7 4 Terminals 40 | . 1 . 7 1 . . 8 2 6 1 5 3 3 3 Fabricators 3 | . . . . . . . . . 2 . . . 1 . Repair Stations 5 | . . . . . . . 2 . . . 1 . 1 1 Recycling Units 5 | . . . 1 . . . 1 . 2 . . . 1 . Scanalyzers 2 | . . . 1 . . . . . . . . . 1 . Garrison Access 3 | . . . . . . . 1 . 1 . 1 . . . Total Hacks 165 | . 2 . 32 3 1 . 47 2 27 2 18 8 16 7 Successful 89 | . 1 . 21 . 1 . 26 1 11 . 11 2 11 4 Failed 76 | . 1 . 11 3 . . 21 1 16 2 7 6 5 3 Catastrophic 11 | . . . . 1 . . 1 1 2 . 2 2 . 2 Database Lockouts . | . . . . . . . . . . . . . . . Manual 94 | . 2 . 18 3 1 . 28 1 13 2 13 3 5 5 Terminals 120 | . 2 . 28 3 . . 35 2 16 2 14 8 5 5 Fabricators 7 | . . . . . . . . . 4 . . . 3 . Repair Stations 16 | . . . . . . . 9 . . . 2 . 3 2 Recycling Units 8 | . . . 1 . . . 1 . 4 . . . 2 . Scanalyzers 6 | . . . 3 . . . . . . . . . 3 . Garrison Access 7 | . . . . . . . 2 . 3 . 2 . . . Terminal Hacks 24 | . . . 6 . 1 . 9 1 2 . 2 2 . 1 Record 1 | . . . . . . . 1 . . . . . . . Robot Analysis 2 | . . . 1 . . . 1 . . . . . . . Prototype ID Bank 5 | . . . 2 . . . 3 . . . . . . . Open Door 1 | . . . . . . . . . . . . 1 . . Alert Level 2 | . . . 1 . . . 1 . . . . . . . Unreport Threat 2 | . . . 1 . . . 1 . . . . . . . Locate Traps 1 | . . . . . . . . . 1 . . . . . Recall Investigation 1 | . . . . . . . . . . . . . . 1 Hauler Manifests 4 | . . . 1 . . . 1 . 1 . 1 . . . Zone Layout 2 | . . . . . . . 1 . . . 1 . . . Garrison Registry 2 | . . . . . . . . 1 . . . 1 . . Derelict Proto ID Bank 1 | . . . . . 1 . . . . . . . . . Fabricator Hacks 3 | . . . . . . . . . . . . . 3 . Network Status 1 | . . . . . . . . . . . . . 1 . Load Schematic 1 | . . . . . . . . . . . . . 1 . Build 1 | . . . . . . . . . . . . . 1 . Repair Station Hacks 9 | . . . . . . . 6 . . . 2 . 1 . Scan Component 5 | . . . . . . . 3 . . . 1 . 1 . Repair 4 | . . . . . . . 3 . . . 1 . . . Recycling Unit Hacks 6 | . . . 1 . . . 1 . 2 . . . 2 . Report Inventory 4 | . . . 1 . . . 1 . 1 . . . 1 . Retrieve Components 2 | . . . . . . . . . 1 . . . 1 . Scanalyzer 6 | . . . 3 . . . . . . . . . 3 . Insert Component 4 | . . . 2 . . . . . . . . . 2 . Analyze 2 | . . . 1 . . . . . . . . . 1 . Garrison Access Hacks 5 | . . . . . . . 1 . 2 . 2 . . . Unlock Access 3 | . . . . . . . 1 . 1 . 1 . . . Coupler Status 2 | . . . . . . . . . 1 . 1 . . . Unauthorized Hacks 36 | . 1 . 11 . . . 9 . 5 . 5 . 2 3 Terminals 33 | . 1 . 11 . . . 8 . 3 . 5 . 2 3 Track 2 | . . . 2 . . . . . . . . . . . Assimilate 2 | . . . 1 . . . . . . . 1 . . . Botnet 24 | . . . 7 . . . 7 . 2 . 3 . 2 3 Operators 4 | . . . 1 . . . 1 . 1 . 1 . . . Sabotage 1 | . 1 . . . . . . . . . . . . . Fabricators . | . . . . . . . . . . . . . . . Repair Stations . | . . . . . . . . . . . . . . . Recycling Units 1 | . . . . . . . . . 1 . . . . . Reject 1 | . . . . . . . . . 1 . . . . . Scanalyzers . | . . . . . . . . . . . . . . . Garrison Access 2 | . . . . . . . 1 . 1 . . . . . Watchers 2 | . . . . . . . 1 . 1 . . . . . Data Cores Recovered . | . . . . . . . . . . . . . . . Used . | . . . . . . . . . . . . . . . Hacking Detections 47 | . . . 9 1 . . 10 1 10 1 3 3 5 4 Full Trace Events 4 | . . . 3 . . . . . . . . . 1 . Feedback Events 1 | . . . 1 . . . . . . . . . . . Corruption 1 | . . . 1 . . . . . . . . . . . Feedback Blocked . | . . . . . . . . . . . . . . . Robot Schematics Acquired . | . . . . . . . . . . . . . . . Robots Built . | . . . . . . . . . . . . . . . Authchips . | . . . . . . . . . . . . . . . Time . | . . . . . . . . . . . . . . . Total Robot Build Rating . | . . . . . . . . . . . . . . . Part Schematics Acquired 2 | . . . 1 . . . . . . . . . 1 . Parts Built 2 | . . . . . . . . . . . . . 2 . Authchips . | . . . . . . . . . . . . . . . Time 106 | . . . . . . . . . . . . . 106 . Total Part Build Rating 12 | . . . . . . . . . . . . . 12 . Parts Repaired 3 | . . . . . . . 2 . . . 1 . . . Time 108 | . . . . . . . 64 . . . 44 . . . Parts Recycled . | . . . . . . . . . . . . . . . Recycled Matter . | . . . . . . . . . . . . . . . Retrieved Matter . | . . . . . . . . . . . . . . . Retrieved Components 3 | . . . . . . . . . 1 . . . 2 . Parts Scanalyzed 2 | . . . 1 . . . . . . . . . 1 . Part Schematics Acquired 2 | . . . 1 . . . . . . . . . 1 . Parts Damaged 1 | . . . . . . . . . . . . . 1 . Bothacking | -11 -10 -10 -9 -9 -9 -8 -8 -8 -7 -7 -7 -7 -6 -5 ------------ Run | Yrd Mat Min Mat Min Exi Min Mat Gar Fac Gar Fac Gar Fac Fac Used RIF Installer 4 | . . . . . . . . 1 . 2 . 1 . . Command Fork 1 | . . . . . . . . . . 1 . . . . Zone Cloak 1 | . . . . . . . . . . 1 . . . . Autoassimilate 1 | . . . . . . . . . . . . 1 . . Robots Hacked 33 | . . . . . . . 1 4 5 5 4 7 7 . Non-combat 9 | . . . . . . . 1 . 3 1 2 . 2 . Combat 24 | . . . . . . . . 4 2 4 2 7 5 . Autoassimilated 2 | . . . . . . . . . . . . 1 1 . Robot Hacks Applied 36 | . . . . . . . 1 4 6 5 7 7 6 . parse_system 1 | . . . . . . . . . . . 1 . . . no_distress 1 | . . . . . . . 1 . . . . . . . map_route 2 | . . . . . . . . . 1 . . . 1 . mark_security 1 | . . . . . . . . . . . 1 . . . relay_feed 1 | . . . . . . . . . 1 . . . . . find_garrison 1 | . . . . . . . . . . . 1 . . . link_fov 1 | . . . . . . . . . . . 1 . . . amplify_resonance 1 | . . . . . . . . . 1 . . . . . disable_weapons 3 | . . . . . . . . . . . . 3 . . reboot_system 2 | . . . . . . . . 1 . 1 . . . . go_dormant 1 | . . . . . . . . . . 1 . . . . overwrite_iff 4 | . . . . . . . . . . . . 3 1 . streamctrl_high 1 | . . . . . . . . . . . . . 1 . formatsys_low 2 | . . . . . . . . . . 1 . . 1 . formatsys_high 14 | . . . . . . . . 3 3 2 3 1 2 . Relay Couplers Released 50 | . . . . . . . . 24 . 14 . 12 . . Machine Destruction 50 | . . . . . . . . 24 . 14 . 12 . . Attached 21 | . . . . . . . . 4 3 3 3 2 5 1 Fabnet Peak Effective % . | . . . . . . . . . . . . . . . Robots Rewired 19 | . . . . . . . . 14 . 5 . . . . Allies Hacked . | . . . . . . . . . . . . . . . Hacks Repelled 2 | . . . . . . . . 2 . . . . . . Allies | -11 -10 -10 -9 -9 -9 -8 -8 -8 -7 -7 -7 -7 -6 -5 -------- Run | Yrd Mat Min Mat Min Exi Min Mat Gar Fac Gar Fac Gar Fac Fac Total Allies 51 | . . 3 1 2 . . . 19 3 8 4 5 6 . Largest Group 11 | . . 3 3 2 2 . . 11 7 6 4 2 3 . Highest-Rated Group 201 | . . 40 40 40 40 . . 201 114 137 100 32 56 . Highest-Rated Ally 32 | . . 16 16 31 31 . . 31 32 32 32 32 32 . Total Orders 35 | . . . 14 1 . . . . 11 5 1 . 3 . STAY 22 | . . . 8 1 . . . . 7 3 1 . 2 . ROAM 1 | . . . 1 . . . . . . . . . . . FOLLOW 12 | . . . 5 . . . . . 4 2 . . 1 . Ally Attacks 377 | . . 8 23 5 . . . 79 61 142 3 37 19 . Total Damage 6165 | . . 74 209 42 . . . 1255 923 2535 141 649 337 . Kills 66 | . . 2 4 1 . . . 9 11 33 . 3 3 . Allies Corrupted 3 | . . . . . . . . 1 . . 1 1 . . Allies Melted . | . . . . . . . . . . . . . . . Intel | -11 -10 -10 -9 -9 -9 -8 -8 -8 -7 -7 -7 -7 -6 -5 ------- Run | Yrd Mat Min Mat Min Exi Min Mat Gar Fac Gar Fac Gar Fac Fac Robot Analysis Total 2 | . . . 1 . . . 1 . . . . . . . Derelict Logs Recovered 4 | . . 3 . 1 . . . . . . . . . . Drone Launches . | . . . . . . . . . . . . . . . Drone Recoveries . | . . . . . . . . . . . . . . . Exploration | -11 -10 -10 -9 -9 -9 -8 -8 -8 -7 -7 -7 -7 -6 -5 ------------- Run | Yrd Mat Min Mat Min Exi Min Mat Gar Fac Gar Fac Gar Fac Fac Turns Passed 22735 | 86 1046 679 1973 1197 1156 1158 2579 2107 2379 2445 850 1819 2285 976 Spaces Moved 12125 | 63 553 426 1192 833 869 533 973 935 1413 1036 497 710 1502 590 Core 82 | 6 . . . . . . . . . . . . 8 68 Treads 34 | . 34 . . . . . . . . . . . . . Legs . | . . . . . . . . . . . . . . . Wheels 11776 | 57 519 426 1192 833 869 533 973 935 1413 1036 497 710 1377 406 Hover 233 | . . . . . . . . . . . . . 117 116 Flight . | . . . . . . . . . . . . . . . Fastest Speed 50 | 50 80 135 120 113 83 173 116 120 120 120 120 120 56 50 Average Speed 126 | 77 146 135 120 114 129 173 151 122 124 124 120 124 115 108 Slowest Speed 480 | 80 480 135 135 145 173 173 230 123 210 135 135 150 150 450 Overloaded Moves . | . . . . . . . . . . . . . . . Propulsion Burnouts . | . . . . . . . . . . . . . . . Robots Hopped . | . . . . . . . . . . . . . . . Cave-ins Triggered 1 | . . . . . . . . 1 . . . . . . Exploration Rate (%) 56 | 4 56 82 68 99 93 78 74 64 29 77 15 72 19 12 Regions Visited 14 Branch Regions 4 Pre-discovered Areas 1 | . . 1 . . . . . . . . . . . . Known Exits Taken 6 | . . . 1 . 1 1 1 . 1 . 1 . . . Unknown Exits Taken 5 | 1 1 1 . 1 . . . . . . . . 1 . Scrap Searched 3 | . . 1 . 1 . 1 . . . . . . . . Spaces Dug 73 | . . . . . . 2 41 . 5 13 4 . 7 1 Terrain Destroyed 559 | . 4 22 29 3 . 59 67 6 35 179 61 72 10 12 Melee 45 | . . . . . . 2 13 . 5 13 4 . 7 1 Projectile 52 | . . . 6 3 . 2 4 3 14 13 . 4 3 . AOE 459 | . 4 22 23 . . 55 50 . 16 153 57 68 . 11 Terrain Rammed . | . . . . . . . . . . . . . . . Walls Destroyed . | . . . . . . . . . . . . . . . Machines Disabled . | . . . . . . . . . . . . . . . Actions | -11 -10 -10 -9 -9 -9 -8 -8 -8 -7 -7 -7 -7 -6 -5 --------- Run | Yrd Mat Min Mat Min Exi Min Mat Gar Fac Gar Fac Gar Fac Fac Total 17495 | 83 703 494 1598 991 901 747 1924 1650 1886 1641 711 1496 1834 836 Wait 3291 | . 34 25 272 71 10 193 740 474 312 184 147 607 84 138 Move 12113 | 62 552 425 1191 832 868 532 973 934 1412 1035 497 709 1501 590 Hop . | . . . . . . . . . . . . . . . Pick Up 197 | 6 26 8 13 4 18 3 24 20 13 16 2 14 26 4 Fast Attach 134 | 7 13 . 8 6 1 . 11 4 11 4 . . 34 35 Attach 93 | . . 2 6 2 . . 15 . 8 9 6 21 21 3 Detach 31 | . . . 1 2 . . 6 1 2 2 3 12 2 . Swap 267 | . 11 3 10 14 . 6 43 38 35 46 17 24 18 2 Drop 171 | . 20 6 15 8 4 . 26 18 13 20 3 4 26 8 Fire 941 | 8 47 25 81 40 . 11 71 100 74 234 17 91 96 46 Melee 168 | . . . . 12 . 2 15 40 6 48 11 6 18 10 Ram . | . . . . . . . . . . . . . . . Kick . | . . . . . . . . . . . . . . . Crush . | . . . . . . . . . . . . . . . Escape Stasis 48 | . . . . . . . . . . 24 8 8 8 . Rewire 14 | . . . . . . . . 6 . 8 . . . . Trap 8 | . . . 1 . . . . 7 . . . . . . Miscellaneous 19 | . . . . . . . . 8 . 11 . . . . Route ------- -11/Scrapyard -10/Materials (discovered 2 exits: *Mat / [*Min]) -10/Mines (discovered 2 exits: *Mat x2) -9/Materials (discovered 4 exits: *Mat x3 / *Min) -9/Mines (discovered 3 exits: *Mat x2 / *Exi) -9/Exiles (discovered 2 exits: *Min x2) -8/Mines -8/Materials (discovered 4 exits: *Fac x3 / Gar) -8/Garrison (discovered 3 exits: *Fac x3) -7/Factory (discovered 3 exits: *Fac x2 / Gar) -7/Garrison (discovered 3 exits: *Fac x3) -7/Factory -7/Garrison (discovered 3 exits: *Fac x3) -6/Factory -5/Factory History --------- Turn | Location | Event 15 | -11/Scrapyard | Discovered new exit (range 16) 87 | -11/Scrapyard | Entered Materials 306 | -10/Materials | Build established: Mutant 501 | -10/Materials | Discovered new exit (range 14) 727 | -10/Materials | Discovered new exit (range 15) 1133 | -10/Materials | Entered Mines 1189 | -10/Mines | Received a Rocket Launcher from a helpful Derelict 1228 | -10/Mines | Learned location of Zion (-7) 1280 | -10/Mines | Core integrity fell below 50% 1449 | -10/Mines | Discovered new exit (range 9) 1513 | -10/Mines | Discovered new exit (range 8) 1525 | -10/Mines | Assisted by bots powering up and referring to "LRC-V3" 1702 | -10/Mines | Learned 4 Materials zone layouts 1727 | -10/Mines | Found a hidden stash of uninstalled traps 1812 | -10/Mines | Entered Materials 1812 | -9/Materials | Accompanied by 3 allies 1812 | -9/Materials | Evolved 2 slots: Propulsion x1, Utility x1 1813 | -9/Materials | Identified exit to Mines 1814 | -9/Materials | Identified exit to Materials 2115 | -9/Materials | Discovered exit to Materials (range 15) 2400 | -9/Materials | Lost 3 allies 3145 | -9/Materials | Discovered exit to Materials (range 10) 3785 | -9/Materials | Entered Mines 3785 | -9/Mines | Accompanied by 1 ally 3906 | -9/Mines | Core integrity fell below 50% 3976 | -9/Mines | Discovered exit to Materials (range 12) 4036 | -9/Mines | Joined a pair of Derelicts in attacking an 0b10 outpost 4198 | -9/Mines | Excavation squad dispatched 4198 | -9/Mines | A large section of the Mines collapsed 4801 | -9/Mines | Discovered exit to Materials (range 8) 4954 | -9/Mines | Learned location of 1 exit from Materials 4968 | -9/Mines | Deemed a non-threat by the Exiles lab entrance 4968 | -9/Mines | Discovered new exit (range 5) 4982 | -9/Mines | Entered Exiles 4982 | -9/Exiles | Accompanied by 2 allies 4983 | -9/Exiles | Identified exit to Mines 5003 | -9/Exiles | Discovered exit to Mines (range 14) 5012 | -9/Exiles | Led the pair of lost Derelicts to a safe place 5037 | -9/Exiles | Met 8R-AWN 5061 | -9/Exiles | Met EX-HEX 5100 | -9/Exiles | Met EX-BIN 5127 | -9/Exiles | Aligned with FarCom system 5128 | -9/Exiles | Given EX-Vault access code 5182 | -9/Exiles | Opened EX-Vault 5190 | -9/Exiles | Found Superbattery 5213 | -9/Exiles | Warned to stay clear of 0b10 Research branches 5305 | -9/Exiles | Met EX-DEC 5327 | -9/Exiles | Visited The Gauntlet 5988 | -9/Exiles | Build established: Hauler-Mutant 6138 | -9/Exiles | Left Exiles lab with Superbattery 6138 | -9/Exiles | Entered Mines 7282 | -8/Mines | Discovered exit to Materials (range 8) 7296 | -8/Mines | Entered Materials 7296 | -8/Materials | Evolved 2 slots: Utility x2 7297 | -8/Materials | Identified exit to Factory 7590 | -8/Materials | Build established: Hauler-Skirmisher 7722 | -8/Materials | Lost 4 parts (2n1u1w) 8811 | -8/Materials | Build established: Hauler-Assassin 9403 | -8/Materials | Discovered exit to Factory (range 3) 9437 | -8/Materials | Repaired Arm. Wheel 9454 | -8/Materials | Repaired Arm. Wheel 9754 | -8/Materials | Discovered exit to Factory (range 10) 9758 | -8/Materials | Build established: Hacker-Skirmisher 9872 | -8/Materials | Identified exit to Garrison 9875 | -8/Materials | Entered Garrison 9901 | -8/Garrison | Discovered exit to Factory (range 59) 9901 | -8/Garrison | Discovered exit to Factory (range 82) 9901 | -8/Garrison | Discovered exit to Factory (range 35) 9962 | -8/Garrison | Installed Relay Interface Framework 10185 | -8/Garrison | Build established: Hacker-Mutant 10333 | -8/Garrison | Triggered checkpoint 10353 | -8/Garrison | Triggered checkpoint 10537 | -8/Garrison | Triggered checkpoint 10573 | -8/Garrison | Garrison Relay disabled 10861 | -8/Garrison | Triggered checkpoint 10931 | -8/Garrison | Garrison Relay disabled 10944 | -8/Garrison | Lost 5 allies 10981 | -8/Garrison | Garrison Relay disabled 11060 | -8/Garrison | Rescued a captive Derelict 11078 | -8/Garrison | Rescued a captive Derelict 11266 | -8/Garrison | Garrison Relay disabled 11317 | -8/Garrison | Garrison Relay disabled 11323 | -8/Garrison | Garrison Relay disabled 11326 | -8/Garrison | Lost 4 allies 11336 | -8/Garrison | Garrison Relay disabled 11455 | -8/Garrison | Build established: Commander-Mutant 11800 | -8/Garrison | Crushed by falling debris 11800 | -8/Garrison | Core integrity fell below 50% 11818 | -8/Garrison | Lost 3 allies 11982 | -8/Garrison | Entered Factory 11982 | -7/Factory | Accompanied by 7 allies 11982 | -7/Factory | Evolved 2 slots: Utility x2 12488 | -7/Factory | Build established: Bothacker-Skirmisher 12891 | -7/Factory | Lost 3 allies 13258 | -7/Factory | Discovered new exit (range 8) 13403 | -7/Factory | Build established: Skirmisher 13750 | -7/Factory | Lost 3 parts (2p1w) 14235 | -7/Factory | Discovered new exit (range 12) 14282 | -7/Factory | Identified exit to Garrison 14361 | -7/Factory | Entered Garrison 14361 | -7/Garrison | Accompanied by 1 ally 14378 | -7/Garrison | Assembled breached garrison interior 14409 | -7/Garrison | Build established: Assassin 14542 | -7/Garrison | Garrison Relay disabled 14835 | -7/Garrison | Build established: Mutant 14890 | -7/Garrison | Destroyed 10 combat bots 14923 | -7/Garrison | Discovered new exit (range 14) 15042 | -7/Garrison | Garrison Relay disabled 15279 | -7/Garrison | Discovered new exit (range 10) 15356 | -7/Garrison | Build established: Bothacker-Mutant 15531 | -7/Garrison | Garrison Relay disabled 15625 | -7/Garrison | Destroyed 7 combat bots 15786 | -7/Garrison | Heavy support dispatched to Factory 15847 | -7/Garrison | Expanded RIF knowledge: Zone Cloak 15930 | -7/Garrison | Spotted B-75 Beast 15988 | -7/Garrison | Discovered new exit (range 13) 16027 | -7/Garrison | Garrison Relay disabled 16065 | -7/Garrison | Expanded RIF knowledge: Command Fork 16806 | -7/Garrison | Entered Factory 17362 | -7/Factory | Repaired Remote Datajack 17544 | -7/Factory | Cargo convoy interrupted 17546 | -7/Factory | Garrison activated, responded to threat 17583 | -7/Factory | Lost 3 allies 17606 | -7/Factory | First assault squad dispatched 17656 | -7/Factory | Identified exit to Garrison 17656 | -7/Factory | Entered Garrison 17780 | -7/Garrison | Discovered new exit (range 49) 17780 | -7/Garrison | Discovered new exit (range 59) 17780 | -7/Garrison | Discovered new exit (range 47) 17790 | -7/Garrison | Triggered checkpoint 17912 | -7/Garrison | Garrison Relay disabled 17941 | -7/Garrison | Expanded RIF knowledge: Autoassimilate 18198 | -7/Garrison | Triggered checkpoint 18221 | -7/Garrison | Triggered checkpoint 18285 | -7/Garrison | Triggered checkpoint 18290 | -7/Garrison | Core integrity fell below 50% 18384 | -7/Garrison | Triggered checkpoint 18496 | -7/Garrison | Rescued a captive Derelict 18970 | -7/Garrison | Triggered checkpoint 19061 | -7/Garrison | Garrison Relay disabled 19390 | -7/Garrison | Triggered checkpoint 19475 | -7/Garrison | Entered Factory 19475 | -6/Factory | Evolved 2 slots: Utility x2 19745 | -6/Factory | Build established: Botlord-Mutant 19825 | -6/Factory | First assault squad dispatched 19942 | -6/Factory | P-60 Hacker assimilated allied Soldier 5a 20009 | -6/Factory | Fabricated Imp. Transmission Jammer (x2) 20104 | -6/Factory | Lost 3 parts (1n2u) 20218 | -6/Factory | Build established: Bothacker-Mutant 20576 | -6/Factory | Lost 3 parts (3n) 20639 | -6/Factory | Cargo convoy interrupted 21377 | -6/Factory | System corruption reached 10% 21432 | -6/Factory | Lost 4 parts (1n3u) 21728 | -6/Factory | Core integrity fell below 50% 21736 | -6/Factory | Discovered new exit (range 6) 21758 | -6/Factory | System corruption reached 30% 21760 | -6/Factory | Entered another Factory area 21760 | -5/Factory | Evolved 2 slots: Propulsion x1, Utility x1 21788 | -5/Factory | Lost 15 parts (2p4n6u3w) 22067 | -5/Factory | Build established: Assassin 22175 | -5/Factory | Lost 4 parts (1n1u2w) 22325 | -5/Factory | Lost 7 parts (1p3n1u2w) 22331 | -5/Factory | System corruption reached 10% 22540 | -5/Factory | Lost 6 parts (2p2n1u1w) 22624 | -5/Factory | Build established: Scavenger-Mutant 22654 | -5/Factory | Core integrity fell below 50% 22698 | -5/Factory | Core integrity fell below 20% 22731 | -5/Factory | Lost 5 parts (3n1u1w) 22736 | -5/Factory | Destroyed by H-66 Slayer via exploding Nuclear Reactor Last Messages --------------- 22691_ System corrupted: Energy discharge (-5). 22694_ K-01 Serf cleans the Nuclear Reactor. 22694_ Discarded Imp. Target Analyzer. 22697_ Slug penetrates Wall. 22697_ Slug penetrates Nuclear Reactor. 22700_ K-01 Serf cleans the Nuclear Reactor. 22700_ ECM Suite destroyed. 22709_ System corrupted: Heat flow error (+267). 22711_ Dropped Med. Matter Pod. 22724_ Slug penetrates Nuclear Reactor. 22724_ Slug penetrates G-67 Veteran. 22725_ System corrupted: Power Sword rejected. 22726_ Acquired Power Sword. 22727_ Slug penetrates Nuclear Reactor. 22729_ R-10 Processor collects Med. Matter Pod. 22730_ G-67 Veteran Flexi-carbon Leg severed. 22731_ Slug penetrates Nuclear Reactor. 22734_ Power Sword destroyed. 22735_ R-10 Processor collects Flexi-carbon Leg. 22736_ Nuclear Reactor explodes. Map ----- +----------------------------------------------------+ | ?????????????????????????????????????????????????? | | ?????????????????????????????????????????????????? | | ?????????????????????????????????????????????????? | | ?????????????????????????????????????????????????? | | ?????????????????????????????????????????????????? | | ?????????????????????????????????????????????????? | | ?????????????????????????????????????????????????? | | ?????????????????????????????????????????????????? | | ?????????????????????????????????????????????????? | | ?????????????????????????????????????????????????? | | ?????????????????????????????????????????????????? | | ?????????????????????????????????????????????????? | | ?????????????????????????????????????????????????? | | ?????????????????????????????????????????????????? | | ?????????????????????????????????????????????????? | | ?????????????????????????????????????????????????? | | ?????????????????????????????????????????????????? | | ?????????????????????????????????????????????????? | | ?????????????????????????????????????????????????? | | ????? ???????????????????????????????????????????? | | ??????"?# ???????????????????????????????????????? | | ??????" # ????##############?????????????????????? | | ??????? # ????# #?????????????????????? | | ????????+ ????# #?????????????????????? | | ????????# ????# """ #?????????????????????? | | ????????# ##### """ @ #?????????????????????? | | ????????#w # """ #???????????Y?????????? | | ????????# # R h gR #?????????????????????? | | ????????# + """ """ #?????????????????????? | | ????????+ # """ """ #?????????????????????? | | ##??????# # """ """ #?????????????????????? | | #??????# # #?????????????????????? | | ######## # #?????????????????????? | | # !# #?????????????????????? | | # ##############?????????????????????? | | # #??????????????????????????????????? | | # """ #??????????????????????????????????? | | # """ #??????????????????????????????????? | | # """ #??????????????????????????????????? | | ## ! #??????????????????????????????????? | | ! """ #??????????????????????????????????? | | """ #??????????????????????????????????? | | """ #??????????????????????????????????? | | #??????????????????????????????????? | | #??????????????????????????????????? | | "######## #??????????????????????????????????? | | ???????? #??????????????????????????????????? | | ????????? #??????????????????????????????????? | | ????????? #??????????????????????????????????? | | ?????????? #??????????????????????????????????? | +----------------------------------------------------+ Best States ------------- Heat Dissipation 54 Energy Generation 21 Energy Capacity 1800 Matter Stores 365 Matter Capacity 400 Sight Range 16 Robot Scan Range 16 Terrain Scan Range 20 Terrain Scan Density 210 ECM Strength 1 Jamming Range 14 Armor Coverage 225 Resistance: KI 20 Propulsion Shielding 66 Point Defense Rating 80 Evasion (%) 54 Targeting Accuracy 11 Target Analysis 9 Recoil Reduction 2 Kinecelleration 40 Salvage Targeting 3 Offensive Hacking 10 Defensive Hacking 10 Relay Coupler Types 5 Relay Coupler Value 98 Item Schematics ----------------- Arm. Wheel | -9/Materials | Scanalyzed Imp. Transmission Jammer | -6/Factory | Scanalyzed Robot Schematics ------------------ None Fabricated ------------ Imp. Transmission Jammer | x2 | -6/Factory Alien Tech Used ----------------- None Achievements -------------- Batter Up Brute Force Challenges ------------ None Game ------ Seed DeepAssemblyRigger Manual? 0 Play Time 07:16:57 Cumulative 193.1 hours Start 2024.12.01 @ 18:42:55 End 2024.12.04 @ 20:38:48 Sessions 9 Manual Loads 0 Difficulty Rogue Special Mode None Game No. 57 Rogue 57 Adventurer 0 Explorer 0 Win Type - Total 0 Types 0/0/0/0/0/0/0/0/0 Lore% 25 Gallery% 53 Achievement% 45 Wizard Run 0 Options --------- Layout 0 ASCII 0 Keyboard 0 Movement Mouse Keybinds 0 Fullscreen 1 Font 36/Smallcaps Map View 76x50 Zoom Use 3% Tactical HUD 1 Map Filters NONE Filters NONE Steam X RUN: 695c9383-dcf9-41a2-8a61-57c64f5965d5